bitfinex-derivatives/quotes_BTCF0:USTF0_20251228
["timestamp","ask_amount","ask_price","bid_price","bid_amount"]
[1766922557141,0.02530772,87931.0,87914.0,0.0683437]
[1766922557334,0.02530772,87930.0,87914.0,0.0683437]
[1766922557535,0.02530772,87929.0,87914.0,0.0683437]
[1766922557742,0.0113815,87932.0,87914.0,0.0683437]
[1766922558043,0.0253093,87931.0,87914.0,0.0683437]
[1766922558247,0.0253093,87930.0,87914.0,0.0683437]
[1766922558446,0.0253093,87929.0,87914.0,0.0683437]
[1766922558645,0.0253093,87928.0,87914.0,0.0683437]
[1766922558945,0.0113815,87932.0,87914.0,0.0683437]
[1766922559146,0.02531173,87931.0,87914.0,0.0683437]
[1766922559340,0.02531173,87930.0,87914.0,0.0683437]
[1766922559541,0.02531173,87929.0,87914.0,0.0683437]
[1766922559742,0.02531173,87928.0,87914.0,0.0683437]
[1766922559936,0.0113815,87932.0,87914.0,0.0683437]
[1766922560132,0.02531251,87931.0,87914.0,0.0683437]
[1766922560336,0.02531251,87930.0,87914.0,0.0683437]
[1766922560549,0.02531251,87929.0,87914.0,0.0683437]
[1766922560837,0.02531251,87928.0,87914.0,0.0683437]
[1766922561036,0.0113815,87932.0,87914.0,0.0683437]
[1766922561241,0.0253141,87931.0,87914.0,0.0683437]
[1766922561540,0.0253141,87930.0,87914.0,0.0683437]
[1766922561742,0.0253141,87929.0,87914.0,0.0683437]
[1766922561948,0.0253141,87928.0,87914.0,0.0683437]
[1766922562148,0.0113815,87932.0,87914.0,0.0683437]
[1766922562350,0.02531438,87931.0,87914.0,0.0683437]
[1766922562552,0.02531438,87930.0,87914.0,0.0683437]
[1766922562739,0.02531438,87929.0,87914.0,0.0683437]
[1766922562940,0.02531438,87928.0,87914.0,0.0683437]
[1766922563136,0.0113815,87932.0,87914.0,0.0683437]
[1766922563353,0.02531439,87931.0,87914.0,0.0683437]
[1766922563554,0.02531439,87930.0,87914.0,0.0683437]
[1766922563856,0.02531439,87929.0,87914.0,0.0683437]
[1766922564042,0.02531439,87928.0,87914.0,0.0683437]
[1766922564246,0.0113815,87932.0,87914.0,0.0683437]
[1766922564446,0.02531442,87931.0,87914.0,0.0683437]
[1766922564647,0.02531442,87930.0,87914.0,0.0683437]
[1766922564846,0.02531442,87929.0,87914.0,0.0683437]
[1766922565048,0.02531442,87928.0,87914.0,0.0683437]
[1766922565256,0.0113815,87932.0,87914.0,0.0683437]
[1766922565446,0.02531662,87931.0,87914.0,0.0683437]
[1766922565648,0.02531662,87930.0,87914.0,0.0683437]
[1766922565851,0.02531662,87929.0,87914.0,0.0683437]
[1766922566049,0.03669862,87928.0,87914.0,0.05696]
[1766922566253,0.011382,87928.0,87914.0,0.05696]
[1766922566453,0.05696,87934.0,87914.0,0.05696]
[1766922566655,0.0113831,87920.0,87898.0,0.08183981]
[1766922566957,0.0113831,87920.0,87903.0,0.0113852]
[1766922567757,0.01155377,87920.0,87903.0,0.01155587]
[1766922567960,0.00017067,87920.0,87903.0,0.01155587]
[1766922569260,0.01155377,87920.0,87903.0,0.01155587]
[1766922572865,0.00017067,87920.0,87903.0,0.00017067]
[1766922573363,0.0113836,87916.0,87903.0,0.00017067]
[1766922573754,0.0113832,87919.0,87903.0,0.00017067]
[1766922574656,0.00017067,87920.0,87903.0,0.00017067]
[1766922574857,0.00017067,87920.0,87903.0,0.01155587]
[1766922575868,0.00017067,87920.0,87905.0,0.0113849]
[1766922576563,0.09676,87921.0,87907.0,0.0113846]
[1766922576762,0.06976,87921.0,87907.0,0.0113846]
[1766922579263,0.06976,87921.0,87908.0,0.0113845]
[1766922586575,0.06976,87921.0,87903.0,0.00017067]
[1766922588173,0.06976,87921.0,87910.0,0.0113842]
[1766922588566,0.0113816,87931.0,87914.0,0.0113837]
[1766922588865,0.17944848,87930.0,87914.0,0.0113837]
[1766922589173,0.02572848,87929.0,87914.0,0.0113837]
[1766922589370,0.02572848,87928.0,87914.0,0.0113837]
[1766922589571,0.15372,87930.0,87914.0,0.0113837]
[1766922589572,0.02572848,87927.0,87914.0,0.0113837]
[1766922589771,0.02572848,87926.0,87914.0,0.0113837]
[1766922590072,0.02572848,87925.0,87914.0,0.0113837]
[1766922590275,0.02572848,87924.0,87914.0,0.0113837]
[1766922590467,0.02572848,87923.0,87914.0,0.0113837]
[1766922590667,0.15372,87930.0,87914.0,0.0113837]
[1766922590871,0.02573053,87929.0,87914.0,0.0113837]
[1766922591073,0.02573053,87928.0,87914.0,0.0113837]
[1766922591365,0.02573053,87927.0,87914.0,0.0113837]
[1766922591569,0.02573053,87926.0,87914.0,0.0113837]
[1766922591772,0.02573053,87925.0,87914.0,0.0113837]
[1766922591974,0.02573053,87924.0,87914.0,0.0113837]
[1766922592174,0.02573053,87923.0,87914.0,0.0113837]
[1766922592376,0.15372,87930.0,87914.0,0.0113837]
[1766922592576,0.02573227,87929.0,87914.0,0.0113837]
[1766922592778,0.02573227,87928.0,87914.0,0.0113837]
[1766922592976,0.02573227,87927.0,87914.0,0.0113837]
[1766922593172,0.15372,87930.0,87914.0,0.0113837]
[1766922593173,0.02573227,87926.0,87914.0,0.0113837]
[1766922593373,0.02573227,87925.0,87914.0,0.0113837]
[1766922593578,0.02573227,87924.0,87914.0,0.0113837]
[1766922593778,0.02573227,87923.0,87914.0,0.0113837]
[1766922594080,0.15372,87930.0,87914.0,0.0113837]
[1766922594275,0.02573422,87929.0,87914.0,0.0113837]
[1766922594482,0.02573422,87928.0,87914.0,0.0113837]
[1766922594780,0.02573422,87927.0,87914.0,0.0113837]
[1766922594976,0.02573422,87926.0,87914.0,0.0113837]
[1766922595183,0.02573422,87925.0,87914.0,0.0113837]
[1766922595384,0.02573422,87924.0,87914.0,0.0113837]
[1766922595583,0.02573422,87923.0,87914.0,0.0113837]
[1766922595784,0.15372,87930.0,87914.0,0.0113837]
[1766922595975,0.02573532,87929.0,87914.0,0.0113837]
[1766922596171,0.02573532,87928.0,87914.0,0.0113837]
[1766922596376,0.02573532,87927.0,87914.0,0.0113837]
[1766922596576,0.02573532,87926.0,87914.0,0.0113837]
[1766922596776,0.02573532,87925.0,87914.0,0.0113837]
[1766922596982,0.02573532,87924.0,87914.0,0.0113837]
[1766922597180,0.02573532,87923.0,87914.0,0.0113837]
[1766922597384,0.0113821,87928.0,87913.0,0.0113838]
[1766922597589,0.02573633,87927.0,87913.0,0.0113838]
[1766922597789,0.02573633,87926.0,87913.0,0.0113838]
[1766922598088,0.02573633,87925.0,87909.0,0.09676]
[1766922598290,0.02573633,87924.0,87909.0,0.1081444]
[1766922598590,0.02573633,87923.0,87909.0,0.1081444]
[1766922598790,0.02573633,87922.0,87909.0,0.1081444]
[1766922598985,0.0113822,87927.0,87911.0,0.0113841]
[1766922599190,0.02573633,87926.0,87911.0,0.0113841]
[1766922599491,0.0113822,87927.0,87911.0,0.0113841]
[1766922599691,0.02573644,87926.0,87911.0,0.0113841]
[1766922599887,0.0113822,87927.0,87911.0,0.0113841]
[1766922600087,0.02573644,87926.0,87911.0,0.0113841]
[1766922600286,0.0113822,87927.0,87911.0,0.0113841]
[1766922600487,0.02573635,87926.0,87911.0,0.0113841]
[1766922600690,0.15372,87930.0,87911.0,0.0113841]
[1766922600691,0.1651018,87930.0,87911.0,0.0113841]
[1766922600890,0.02573622,87929.0,87911.0,0.0113841]
[1766922601193,0.02573622,87928.0,87914.0,0.0113838]
[1766922601395,0.02573622,87927.0,87914.0,0.0113838]
[1766922601588,0.02573622,87926.0,87914.0,0.0113838]
[1766922601790,0.1651018,87930.0,87914.0,0.0113838]
[1766922602088,0.02573608,87929.0,87914.0,0.0113838]
[1766922602288,0.02573608,87928.0,87914.0,0.0113838]
[1766922602591,0.02573608,87927.0,87914.0,0.0113838]
[1766922602888,0.02573608,87926.0,87914.0,0.0113838]
[1766922603194,0.1651018,87930.0,87914.0,0.0113838]
[1766922603388,0.02573635,87929.0,87914.0,0.0113838]
[1766922603594,0.02573635,87928.0,87916.0,0.0113835]
[1766922603795,0.02573635,87927.0,87916.0,0.0113835]
[1766922603994,0.02573635,87926.0,87916.0,0.0113835]
[1766922604295,0.05696,87929.0,87916.0,0.0113835]
[1766922604487,0.02573727,87928.0,87916.0,0.0113835]
[1766922604688,0.02573727,87927.0,87916.0,0.0113835]
[1766922604993,0.02573727,87926.0,87916.0,0.0113835]
[1766922605194,0.05696,87929.0,87916.0,0.0113835]
[1766922605392,0.02573843,87928.0,87916.0,0.0113835]
[1766922605593,0.02573843,87927.0,87916.0,0.0113835]
[1766922605795,0.05696,87929.0,87916.0,0.0113835]
[1766922605796,0.02573843,87926.0,87916.0,0.0113835]
[1766922606093,0.05696,87929.0,87916.0,0.0113835]
[1766922606398,0.02573938,87928.0,87916.0,0.0113835]
[1766922606599,0.02573938,87927.0,87912.0,0.011384]
[1766922606899,0.02573938,87926.0,87912.0,0.011384]
[1766922607198,0.05696,87929.0,87912.0,0.011384]
[1766922607399,0.02573992,87928.0,87912.0,0.011384]
[1766922607599,0.02573992,87927.0,87912.0,0.011384]
[1766922607796,0.02573992,87926.0,87912.0,0.011384]
[1766922607998,0.05696,87929.0,87912.0,0.011384]
[1766922608193,0.0257399,87928.0,87912.0,0.011384]
[1766922608395,0.0257399,87927.0,87912.0,0.011384]
[1766922608691,0.0257399,87926.0,87912.0,0.011384]
[1766922608888,0.05696,87929.0,87912.0,0.011384]
[1766922609086,0.02574021,87928.0,87912.0,0.011384]
[1766922609396,0.05696,87929.0,87912.0,0.011384]
[1766922609397,0.02574021,87927.0,87912.0,0.011384]
[1766922609598,0.02574021,87926.0,87912.0,0.011384]
[1766922609798,0.05696,87929.0,87912.0,0.011384]
[1766922609993,0.02574063,87928.0,87912.0,0.011384]
[1766922610194,0.02574063,87927.0,87912.0,0.011384]
[1766922610394,0.02574063,87926.0,87912.0,0.011384]
[1766922610600,0.05696,87929.0,87912.0,0.011384]
[1766922610800,0.02574111,87928.0,87912.0,0.011384]
[1766922611102,0.02574111,87927.0,87912.0,0.011384]
[1766922611300,0.02574111,87926.0,87912.0,0.011384]
[1766922611502,0.05696,87929.0,87912.0,0.011384]
[1766922611702,0.02574167,87928.0,87912.0,0.011384]
[1766922611902,0.05696,87929.0,87909.0,0.09676]
[1766922611903,0.02574167,87927.0,87914.0,0.0113837]
[1766922612100,0.02574167,87926.0,87914.0,0.0113837]
[1766922612301,0.05696,87929.0,87914.0,0.0113837]
[1766922612498,0.02574232,87928.0,87914.0,0.0113837]
[1766922612697,0.02574232,87927.0,87914.0,0.0113837]
[1766922612898,0.02574232,87926.0,87914.0,0.0113837]
[1766922613196,0.02574232,87925.0,87914.0,0.0113837]
[1766922613396,0.05696,87929.0,87914.0,0.0113837]
[1766922613604,0.02574308,87928.0,87914.0,0.0113837]
[1766922613806,0.02574308,87927.0,87914.0,0.0113837]
[1766922614006,0.02574308,87926.0,87911.0,0.0113841]
[1766922614196,0.02574308,87925.0,87911.0,0.0113841]
[1766922614396,0.0113823,87926.0,87911.0,0.0113841]
[1766922614696,0.02574398,87925.0,87911.0,0.0113841]
[1766922614896,0.0113823,87926.0,87911.0,0.0113841]
[1766922615192,0.02573209,87925.0,87911.0,0.0113841]
[1766922615390,0.0113823,87926.0,87911.0,0.0113841]
[1766922615594,0.02573316,87925.0,87911.0,0.0113841]
[1766922615804,0.0113823,87926.0,87911.0,0.0113841]
[1766922615999,0.02573316,87925.0,87911.0,0.0113841]
[1766922616203,0.0113823,87926.0,87911.0,0.0113841]
[1766922616402,0.02573446,87925.0,87910.0,0.0683442]
[1766922616603,0.0113823,87926.0,87910.0,0.0683442]
[1766922616805,0.02573446,87925.0,87910.0,0.0683442]
[1766922617001,0.0113823,87926.0,87910.0,0.0683442]
[1766922617306,0.02573446,87925.0,87910.0,0.0683442]
[1766922617501,0.0113823,87926.0,87910.0,0.0683442]
[1766922617701,0.02573616,87925.0,87910.0,0.0683442]
[1766922617903,0.0113823,87926.0,87910.0,0.0683442]
[1766922618097,0.02573616,87925.0,87910.0,0.0683442]
[1766922618296,0.0113823,87926.0,87910.0,0.0683442]
[1766922618596,0.02573869,87925.0,87910.0,0.0683442]
[1766922618907,0.0113823,87926.0,87910.0,0.0683442]
[1766922619106,0.02573869,87925.0,87910.0,0.0683442]
[1766922619305,0.0113823,87926.0,87910.0,0.0683442]
[1766922619506,0.02573904,87925.0,87910.0,0.0683442]
[1766922619700,0.0113823,87926.0,87910.0,0.0683442]
[1766922619899,0.02573905,87925.0,87910.0,0.0683442]
[1766922620103,0.0113823,87926.0,87910.0,0.0683442]
[1766922620303,0.02573895,87925.0,87912.0,0.0113839]
[1766922620603,0.0683419,87929.0,87912.0,0.0113839]
[1766922620803,0.02573917,87928.0,87912.0,0.0113839]
[1766922621011,0.02573917,87927.0,87912.0,0.0113839]
[1766922621212,0.02573917,87926.0,87912.0,0.0113839]
[1766922621414,0.02573917,87925.0,87912.0,0.0113839]
[1766922621607,0.0683419,87929.0,87912.0,0.0113839]
[1766922621818,0.02573919,87928.0,87912.0,0.0113839]
[1766922622110,0.02573919,87927.0,87912.0,0.0113839]
[1766922622300,0.02573919,87926.0,87912.0,0.0113839]
[1766922622498,0.02573919,87925.0,87912.0,0.0113839]
[1766922622699,0.0683419,87929.0,87912.0,0.0113839]
[1766922622900,0.02573931,87928.0,87912.0,0.0113839]
[1766922623104,0.02573931,87927.0,87912.0,0.0113839]
[1766922623300,0.02573931,87926.0,87912.0,0.0113839]
[1766922623505,0.02573931,87925.0,87912.0,0.0113839]
[1766922623701,0.0683419,87929.0,87912.0,0.0113839]
[1766922623916,0.0113822,87927.0,87910.0,0.05696]
[1766922624115,0.02573946,87926.0,87910.0,0.05696]
[1766922624310,0.02573946,87925.0,87910.0,0.05696]
[1766922624511,0.02573946,87924.0,87910.0,0.05696]
[1766922624711,0.0113822,87927.0,87910.0,0.05696]
[1766922624916,0.0113824,87925.0,87910.0,0.05696]
[1766922625214,0.02573959,87924.0,87910.0,0.05696]
[1766922625514,0.0113824,87925.0,87910.0,0.05696]
[1766922625715,0.02573981,87924.0,87910.0,0.05696]
[1766922625915,0.0113824,87925.0,87910.0,0.05696]
[1766922626116,0.02573981,87924.0,87910.0,0.05696]
[1766922626317,0.0113824,87925.0,87910.0,0.05696]
[1766922626517,0.0257401,87924.0,87910.0,0.05696]
[1766922626817,0.0113824,87925.0,87910.0,0.05696]
[1766922627017,0.0257401,87924.0,87910.0,0.05696]
[1766922627315,0.0113824,87925.0,87910.0,0.05696]
[1766922627615,0.02574051,87924.0,87910.0,0.05696]
[1766922627817,0.0113821,87928.0,87912.0,0.011384]
[1766922628016,0.02574051,87927.0,87914.0,0.0113838]
[1766922628213,0.02574051,87926.0,87914.0,0.0113838]
[1766922628414,0.02574051,87925.0,87914.0,0.0113838]
[1766922628611,0.02574051,87924.0,87914.0,0.0113838]
[1766922628910,0.05696,87929.0,87914.0,0.0113838]
[1766922629112,0.0257412,87928.0,87914.0,0.0113838]
[1766922629311,0.0257412,87927.0,87914.0,0.0113838]
[1766922629519,0.0257412,87926.0,87914.0,0.0113838]
[1766922629816,0.0257412,87925.0,87916.0,0.0113835]
[1766922630019,0.0257412,87924.0,87916.0,0.0113835]
[1766922630320,0.0257412,87923.0,87916.0,0.0113835]
[1766922630616,0.05696,87929.0,87916.0,0.0113835]
[1766922641325,0.05696,87929.0,87913.0,0.0113839]
[1766922642429,0.02562979,87928.0,87913.0,0.0113839]
[1766922642631,0.02562979,87927.0,87913.0,0.0113839]
[1766922642830,0.02562979,87926.0,87913.0,0.0113839]
[1766922643030,0.02562979,87925.0,87913.0,0.0113839]
[1766922643231,0.05696,87929.0,87913.0,0.0113839]
[1766922643431,0.02562975,87928.0,87913.0,0.0113839]
[1766922643630,0.02562975,87927.0,87913.0,0.0113839]
[1766922643826,0.02562975,87926.0,87913.0,0.0113839]
[1766922644028,0.02562975,87925.0,87913.0,0.0113839]
[1766922644229,0.05696,87929.0,87913.0,0.0113839]
[1766922644428,0.02562972,87928.0,87913.0,0.0113839]
[1766922644626,0.02562972,87927.0,87913.0,0.0113839]
[1766922644826,0.05696,87929.0,87913.0,0.0113839]
[1766922644827,0.02562972,87926.0,87913.0,0.0113839]
[1766922645028,0.02562972,87925.0,87913.0,0.0113839]
[1766922645225,0.05696,87929.0,87913.0,0.0113839]
[1766922645424,0.0254548,87928.0,87913.0,0.0113839]
[1766922645623,0.0254548,87927.0,87913.0,0.0113839]
[1766922645832,0.0254548,87926.0,87913.0,0.0113839]
[1766922646125,0.0254548,87925.0,87913.0,0.0113839]
[1766922646333,0.05696,87929.0,87913.0,0.0113839]
[1766922646533,0.02545477,87928.0,87913.0,0.0113839]
[1766922646734,0.02545477,87927.0,87910.0,0.05696]
[1766922647042,0.02545477,87926.0,87910.0,0.05696]
[1766922647232,0.02545477,87925.0,87910.0,0.05696]
[1766922647432,0.05696,87929.0,87910.0,0.05696]
[1766922647636,0.02545476,87928.0,87910.0,0.05696]
[1766922647841,0.02545476,87927.0,87915.0,0.0113836]
[1766922648042,0.02545476,87926.0,87915.0,0.0113836]
[1766922648340,0.02545476,87925.0,87915.0,0.0113836]
[1766922648640,0.05696,87929.0,87915.0,0.0113836]
[1766922648841,0.02545474,87928.0,87917.0,0.0113833]
[1766922649041,0.02545474,87927.0,87917.0,0.0113833]
[1766922649241,0.02545474,87926.0,87917.0,0.0113833]
[1766922649438,0.05696,87929.0,87917.0,0.0113833]
[1766922649646,0.02545473,87928.0,87917.0,0.0113833]
[1766922649939,0.02545473,87927.0,87914.0,0.0113837]
[1766922650136,0.02545473,87926.0,87914.0,0.0113837]
[1766922650335,0.05696,87929.0,87914.0,0.0113837]
[1766922650635,0.02545471,87928.0,87914.0,0.0113837]
[1766922650835,0.02545471,87927.0,87914.0,0.0113837]
[1766922651042,0.02545471,87926.0,87914.0,0.0113837]
[1766922651341,0.05696,87929.0,87914.0,0.0113837]
[1766922651542,0.02545468,87928.0,87914.0,0.0113837]
[1766922651736,0.02545468,87927.0,87914.0,0.0113837]
[1766922651937,0.02545468,87926.0,87914.0,0.0113837]
[1766922652139,0.05696,87929.0,87914.0,0.0113837]
[1766922652339,0.02545468,87928.0,87914.0,0.0113837]
[1766922652543,0.02545468,87927.0,87914.0,0.0113837]
[1766922652741,0.05696,87929.0,87914.0,0.0113837]
[1766922652742,0.02545468,87926.0,87914.0,0.0113837]
[1766922652942,0.05696,87929.0,87914.0,0.0113837]
[1766922653136,0.02545468,87928.0,87914.0,0.0113837]
[1766922653338,0.02545468,87927.0,87914.0,0.0113837]
[1766922653537,0.02545468,87926.0,87914.0,0.0113837]
[1766922653732,0.05696,87929.0,87914.0,0.0113837]
[1766922653937,0.02545469,87928.0,87916.0,0.0113835]
[1766922654144,0.02545469,87927.0,87916.0,0.0113835]
[1766922654443,0.02545469,87926.0,87916.0,0.0113835]
[1766922654746,0.05696,87929.0,87913.0,0.0113839]
[1766922654939,0.02545476,87928.0,87913.0,0.0113839]
[1766922655140,0.02545476,87927.0,87913.0,0.0113839]
[1766922655342,0.02545476,87926.0,87913.0,0.0113839]
[1766922655641,0.05696,87929.0,87915.0,0.0113836]
[1766922655843,0.02544789,87928.0,87915.0,0.0113836]
[1766922656042,0.02544789,87927.0,87915.0,0.0113836]
[1766922656242,0.05696,87929.0,87915.0,0.0113836]
[1766922656443,0.02544449,87928.0,87915.0,0.0113836]
[1766922656639,0.02544449,87927.0,87915.0,0.0113836]
[1766922656840,0.05696,87929.0,87915.0,0.0113836]
[1766922657041,0.02544449,87928.0,87915.0,0.0113836]
[1766922657342,0.02544449,87927.0,87915.0,0.0113836]
[1766922657541,0.05696,87929.0,87915.0,0.0113836]
[1766922657741,0.0254445,87928.0,87915.0,0.0113836]
[1766922658048,0.0254445,87927.0,87915.0,0.0113836]
[1766922658247,0.05696,87929.0,87915.0,0.0113836]
[1766922658449,0.02544457,87928.0,87915.0,0.0113836]
[1766922658648,0.02544457,87927.0,87915.0,0.0113836]
[1766922658944,0.05696,87929.0,87915.0,0.0113836]
[1766922659144,0.02544457,87928.0,87915.0,0.0113836]
[1766922659343,0.02544457,87927.0,87912.0,0.011384]
[1766922659551,0.05696,87929.0,87912.0,0.011384]
[1766922659849,0.02544461,87928.0,87912.0,0.011384]
[1766922660147,0.02544461,87927.0,87912.0,0.011384]
[1766922660347,0.05696,87929.0,87912.0,0.011384]
[1766922660541,0.02544476,87928.0,87912.0,0.011384]
[1766922660734,0.02544476,87927.0,87912.0,0.011384]
[1766922660938,0.02544481,87926.0,87912.0,0.011384]
[1766922661138,0.05696,87929.0,87912.0,0.011384]
[1766922661438,0.02544473,87928.0,87912.0,0.011384]
[1766922661642,0.02544473,87927.0,87912.0,0.011384]
[1766922661838,0.05696,87929.0,87912.0,0.011384]
[1766922662035,0.02544461,87928.0,87912.0,0.011384]
[1766922662240,0.02544461,87927.0,87912.0,0.011384]
[1766922662440,0.02544461,87926.0,87912.0,0.011384]
[1766922662643,0.05696,87929.0,87912.0,0.011384]
[1766922662841,0.02544457,87928.0,87912.0,0.011384]
[1766922663042,0.02544457,87927.0,87912.0,0.011384]
[1766922663242,0.02544457,87926.0,87912.0,0.011384]
[1766922663442,0.05696,87929.0,87912.0,0.011384]
[1766922663644,0.02544454,87928.0,87912.0,0.011384]
[1766922663843,0.02544454,87927.0,87912.0,0.011384]
[1766922664153,0.02544454,87926.0,87912.0,0.011384]
[1766922664453,0.05696,87929.0,87910.0,0.05696]
[1766922664643,0.02544451,87928.0,87910.0,0.05696]
[1766922664839,0.02544451,87927.0,87910.0,0.05696]
[1766922665043,0.02544451,87926.0,87910.0,0.05696]
[1766922665251,0.05696,87929.0,87910.0,0.05696]
[1766922665453,0.02544443,87928.0,87910.0,0.05696]
[1766922665650,0.05696,87929.0,87910.0,0.05696]
[1766922665651,0.02544443,87927.0,87910.0,0.05696]
[1766922665843,0.0113824,87925.0,87910.0,0.05696]
[1766922666240,0.0113821,87928.0,87910.0,0.0683442]
[1766922666439,0.02544417,87927.0,87910.0,0.0683442]
[1766922666654,0.02544417,87926.0,87910.0,0.0683442]
[1766922666855,0.02544417,87925.0,87910.0,0.0683442]
[1766922667053,0.0113821,87928.0,87910.0,0.0683442]
[1766922667352,0.02544405,87927.0,87910.0,0.0683442]
[1766922667553,0.02544405,87926.0,87910.0,0.0683442]
[1766922667758,0.0113821,87928.0,87910.0,0.0683442]
[1766922667759,0.02544405,87925.0,87910.0,0.0683442]
[1766922668057,0.0113821,87928.0,87910.0,0.0683442]
[1766922668354,0.02544359,87927.0,87910.0,0.0683442]
[1766922668553,0.02544359,87926.0,87910.0,0.0683442]
[1766922668746,0.02544359,87925.0,87910.0,0.0683442]
[1766922669054,0.0113821,87928.0,87910.0,0.0683442]
[1766922669256,0.02544323,87927.0,87910.0,0.0683442]
[1766922669455,0.02544323,87926.0,87910.0,0.0683442]
[1766922669654,0.02544323,87925.0,87910.0,0.0683442]
[1766922669954,0.0113821,87928.0,87910.0,0.0683442]
[1766922670154,0.02544292,87927.0,87910.0,0.0683442]
[1766922670355,0.03682522,87926.0,87910.0,0.0683442]
[1766922670558,0.02544292,87925.0,87910.0,0.0683442]
[1766922670753,0.0113823,87926.0,87910.0,0.0683442]
[1766922670944,0.02544263,87925.0,87910.0,0.0683442]
[1766922671146,0.05696,87929.0,87910.0,0.05696]
[1766922671456,0.02544251,87928.0,87903.0,0.00017067]
[1766922671658,0.0113823,87926.0,87907.0,0.0113846]
[1766922671848,0.02544251,87925.0,87907.0,0.0113846]
[1766922672358,0.02544251,87925.0,87909.0,0.0113844]
[1766922672959,0.0113825,87924.0,87906.0,0.0113848]
[1766922674658,0.05696,87929.0,87903.0,0.00017067]
[1766922674659,0.0113829,87922.0,87903.0,0.00017067]
[1766922675561,0.0113831,87920.0,87903.0,0.00017067]
[1766922675956,0.0113831,87920.0,87902.0,0.03596067]
[1766922675957,0.0113834,87917.0,87902.0,0.03596067]
[1766922676255,0.0113834,87917.0,87900.0,0.09676]
[1766922676457,0.05696,87920.0,87893.0,0.00227551]
[1766922676659,0.0113839,87914.0,87894.0,0.0113863]
[1766922677055,0.00017067,87913.0,87895.0,0.00017067]
[1766922677254,0.00017067,87913.0,87889.0,0.05696]
[1766922677660,0.0113847,87908.0,87889.0,0.05696]
[1766922678161,0.0113847,87908.0,87890.0,0.0113869]
[1766922678361,0.0113847,87908.0,87890.0,0.00017067]
[1766922678558,0.05696,87909.0,87891.0,0.0113867]
[1766922679656,0.05696,87909.0,87890.0,0.00017067]
[1766922681156,0.05696,87909.0,87897.0,0.0113859]
[1766922704899,0.05696,87909.0,87894.0,0.0113863]
[1766922708197,0.01155467,87913.0,87896.0,0.0113861]
[1766922708397,0.15372,87912.0,87896.0,0.0113861]
[1766922709000,0.0113842,87911.0,87896.0,0.0113861]
[1766922716707,0.0113849,87906.0,87890.0,0.00017067]
[1766922717008,0.0683449,87906.0,87890.0,0.00017067]
[1766922719910,0.0683449,87906.0,87890.0,0.01155747]
[1766922720411,0.05696,87906.0,87890.0,0.01155747]
[1766922721714,0.05696,87906.0,87892.0,0.0113866]
[1766922722213,0.05696,87906.0,87890.0,0.04196]
[1766922722415,0.011385,87905.0,87889.0,0.03596]
[1766922722603,0.011385,87905.0,87889.0,0.04492]
[1766922723108,0.0113858,87899.0,87885.0,0.09676]
[1766922723315,0.0113858,87899.0,87888.0,6.7e-07]
[1766922723711,0.0113854,87902.0,87888.0,6.7e-07]
[1766922724016,0.0113863,87895.0,87888.0,6.7e-07]
[1766922724407,0.05696,87896.0,87888.0,6.7e-07]
[1766922724907,0.0683462,87896.0,87888.0,6.7e-07]
[1766922725315,0.05696,87896.0,87888.0,6.7e-07]
[1766922739226,0.05696,87896.0,87880.0,0.0113882]
[1766922744427,0.05696,87896.0,87879.0,0.00017067]
[1766922744626,0.05696,87896.0,87879.0,0.01017067]
[1766922744822,0.05696,87896.0,87884.0,0.0113876]
[1766922751235,0.05696,87896.0,87881.0,0.011388]
[1766922751830,0.05696,87896.0,87879.0,0.00017067]
[1766922752030,0.05696,87896.0,87879.0,0.01017067]
[1766922753432,0.05696,87896.0,87882.0,0.0113879]
[1766922755636,0.05696,87896.0,87879.0,0.00017067]
[1766922755835,0.05696,87896.0,87879.0,0.01017067]
[1766922757340,0.05696,87896.0,87883.0,0.0113877]
[1766922759044,0.05696,87896.0,87885.0,0.0113875]
[1766922773450,0.05696,87896.0,87882.0,0.0113879]
[1766922777058,0.05696,87896.0,87884.0,0.0113876]
[1766922781361,0.0113863,87895.0,87879.0,6.7e-07]
[1766922781562,0.05696,87896.0,87875.0,0.0113888]
[1766922781856,0.0113864,87894.0,87875.0,0.01]
[1766922782064,0.05696,87896.0,87875.0,0.004]
[1766922782461,0.00017067,87894.0,87882.0,0.0113878]
[1766922792767,0.00017067,87894.0,87879.0,0.0113883]
[1766922795865,0.00017067,87894.0,87881.0,0.011388]
[1766922798969,0.01155717,87894.0,87878.0,0.0113884]
[1766922799566,0.01155717,87894.0,87877.0,0.00017067]
[1766922799761,0.0113868,87892.0,87877.0,0.00017067]
[1766922801671,0.00017067,87894.0,87877.0,0.00017067]
[1766922801873,0.15376,87893.0,87877.0,0.00017067]
[1766922802574,0.00017067,87894.0,87880.0,0.0113881]
[1766922802774,0.15376,87893.0,87880.0,0.0113881]
[1766922803273,0.15376,87893.0,87882.0,0.0113879]
[1766922819594,0.02663852,87892.0,87882.0,0.0113879]
[1766922819797,0.02663852,87891.0,87882.0,0.0113879]
[1766922819995,0.15376,87893.0,87882.0,0.0113879]
[1766922820199,0.02663852,87892.0,87882.0,0.0113879]
[1766922820398,0.02663852,87891.0,87882.0,0.0113879]
[1766922820599,0.15376,87893.0,87882.0,0.0113879]
[1766922820801,0.02663881,87892.0,87882.0,0.0113879]
[1766922821096,0.02663881,87891.0,87882.0,0.0113879]
[1766922821286,0.15376,87893.0,87882.0,0.0113879]
[1766922821490,0.02663911,87892.0,87882.0,0.0113879]
[1766922821691,0.02663911,87891.0,87882.0,0.0113879]
[1766922821892,0.15376,87893.0,87882.0,0.0113879]
[1766922822093,0.02663911,87892.0,87882.0,0.0113879]
[1766922822294,0.02663911,87891.0,87882.0,0.0113879]
[1766922822491,0.15376,87893.0,87882.0,0.0113879]
[1766922822691,0.02663952,87892.0,87882.0,0.0113879]
[1766922822998,0.02663952,87891.0,87882.0,0.0113879]
[1766922823197,0.15376,87893.0,87882.0,0.0113879]
[1766922823399,0.02664001,87892.0,87882.0,0.0113879]
[1766922823605,0.02664001,87891.0,87882.0,0.0113879]
[1766922823806,0.15376,87893.0,87882.0,0.0113879]
[1766922824105,0.02664004,87892.0,87882.0,0.0113879]
[1766922824294,0.02664004,87891.0,87882.0,0.0113879]
[1766922824500,0.15376,87893.0,87882.0,0.0113879]
[1766922824797,0.02664062,87892.0,87882.0,0.0113879]
[1766922824999,0.02664062,87891.0,87882.0,0.0113879]
[1766922825200,0.15376,87893.0,87882.0,0.0113879]
[1766922825400,0.02666005,87892.0,87882.0,0.0113879]
[1766922825601,0.02666005,87891.0,87882.0,0.0113879]
[1766922825801,0.15376,87893.0,87882.0,0.0113879]
[1766922826002,0.02666005,87892.0,87882.0,0.0113879]
[1766922826202,0.02666005,87891.0,87882.0,0.0113879]
[1766922826396,0.15376,87893.0,87882.0,0.0113879]
[1766922826601,0.02666093,87892.0,87882.0,0.0113879]
[1766922826801,0.02666093,87891.0,87882.0,0.0113879]
[1766922827003,0.15376,87893.0,87882.0,0.0113879]